bitfinex/quotes_ETHUSD_20250213
["timestamp","ask_amount","ask_price","bid_price","bid_amount"]
[1739407758790,3.6757,2720.6,2720.2,0.285]
[1739407759356,0.88548171,2720.8,2720.2,3.96111]
[1739407759579,0.8103,2720.9,2720.3,7.35394]
[1739407759796,4.48566,2720.9,2720.2,0.285]
[1739407759992,4.48566,2720.9,2720.2,3.96116]
[1739407760669,5.30246802,2720.9,2720.2,3.96116]
[1739407760893,5.30237802,2720.9,2720.2,0.285]
[1739407761091,5.30237802,2720.9,2720.2,3.96108]
[1739407761476,5.30237802,2720.9,2720.3,3.67605]
[1739407761662,0.53097283,2720.8,2720.3,3.67605]
[1739407761862,4.20638283,2720.8,2720.2,0.285]
[1739407762094,3.67552,2720.7,2720.2,0.285]
[1739407762264,4.20644283,2720.8,2720.2,0.285]
[1739407762658,0.8103,2720.9,2720.3,7.35393]
[1739407762966,4.48565,2720.9,2720.1,3.67627]
[1739407763302,3.67565,2720.7,2720.2,0.285]
[1739407763808,3.67565,2720.7,2720.2,0.284]
[1739407764898,0.44930002,2720.8,2719.2,2.0]
[1739407765198,3.67645,2720.1,2719.6,0.284]
[1739407765393,3.67645,2720.1,2719.7,3.679]
[1739407765581,0.7609,2720.2,2719.3,0.284]
[1739407765764,3.67682,2719.8,2719.3,0.284]
[1739407766098,3.67716,2719.5,2719.3,0.284]
[1739407766418,3.67668,2719.9,2719.3,0.284]
[1739407766616,3.67683,2719.8,2719.3,0.284]
[1739407766912,0.735351,2719.8,2719.3,0.284]
[1739407767210,0.51228168,2720.1,2719.5,3.67706]
[1739407767389,4.18865168,2720.1,2719.4,3.67715]
[1739407767564,3.67649,2720.0,2719.4,3.67715]
[1739407767992,7.35283,2720.1,2719.4,3.67715]
[1739407768238,3.67637,2720.1,2719.5,3.67711]
[1739407768500,0.7609,2720.2,2719.3,0.284]
[1739407768501,3.67686,2719.8,2719.3,0.284]
[1739407768794,3.6766,2719.9,2719.4,3.67727]
[1739407768998,0.7975,2719.8,2718.5,0.35169102]
[1739407769196,0.7975,2719.8,2718.8,3.67799]
[1739407769403,4.24189,2719.7,2718.8,0.285]
[1739407769699,3.67764,2719.2,2718.8,0.285]
[1739407769866,3.67734,2719.4,2718.8,3.96306]
[1739407770061,0.7975,2719.8,2718.8,3.96306]
[1739407770288,0.7975,2719.8,2718.5,0.16017025]
[1739407770289,3.67777,2719.1,2718.5,0.16017025]
[1739407770461,3.67777,2719.1,2718.6,3.68]
[1739407771077,3.67809,2718.8,2718.5,0.16017025]
[1739407771268,3.67836,2718.6,2718.5,0.16017025]
[1739407771463,5.02691684,2719.4,2718.5,3.83857025]
[1739407771464,0.7632,2719.1,2718.5,3.83857025]
[1739407771795,0.7632,2719.5,2718.9,3.67789]
[1739407772004,3.67691,2719.7,2719.1,3.67763]
[1739407772370,0.7632,2719.8,2719.2,3.67754]
[1739407772718,0.7632,2719.8,2719.3,3.68]
[1739407772892,3.6765,2720.0,2719.4,3.67717]
[1739407773205,0.8053,2720.8,2719.5,7.35607]
[1739407773409,3.67574,2720.6,2720.0,3.67637]
[1739407773609,0.8053,2720.8,2720.1,0.286]
[1739407773972,4.48032,2721.1,2720.2,7.3542]
[1739407774186,0.448032,2721.0,2720.4,3.67587]
[1739407774388,4.123162,2721.0,2720.4,3.67587]
[1739407774587,0.448032,2721.0,2720.4,3.67587]
[1739407774808,3.67536,2720.9,2720.1,0.286]
[1739407775012,0.448032,2721.0,2720.3,3.67593]
[1739407775308,3.67512,2721.0,2720.3,3.67593]
[1739407775605,3.67536,2720.9,2720.2,3.67611]
[1739407775785,4.48034,2721.1,2720.4,3.67592]
[1739407775983,3.6746,2721.4,2720.7,3.6754]
[1739407776188,4.44674,2721.5,2720.7,3.6754]
[1739407776387,3.67459,2721.4,2720.7,3.6754]
[1739407776588,3.67471,2721.3,2720.6,3.67554]
[1739407777298,3.67471,2721.3,2720.7,3.67551]
[1739407777510,0.7723,2721.5,2720.7,3.67551]
[1739407777674,3.67472,2721.3,2720.7,3.67551]
[1739407778008,3.67512,2721.0,2720.8,0.286]
[1739407778175,3.67524,2721.0,2720.4,3.678]
[1739407778370,3.67524,2721.0,2720.9,0.286]
[1739407778915,3.67485,2721.2,2720.9,0.286]
[1739407779112,4.119291,2721.4,2720.9,0.286]
[1739407779277,3.67495,2721.2,2720.9,0.286]
[1739407779470,3.67511,2721.0,2720.9,0.286]
[1739407779674,3.6753,2720.9,2720.3,3.678]
[1739407779876,3.6753,2720.9,2720.4,0.286]
[1739407780113,3.6753,2720.9,2720.4,3.286]
[1739407780418,3.67528,2720.9,2720.5,0.285]
[1739407780631,3.67496,2721.2,2720.5,0.285]
[1739407781212,0.444661,2721.4,2720.7,3.67544]
[1739407781213,4.119301,2721.4,2720.7,3.67544]
[1739407781412,3.67525,2720.9,2720.8,0.285]
[1739407781778,0.4891601,2721.3,2720.8,0.285]
[1739407781978,3.67521,2721.0,2720.8,0.285]
[1739407782381,3.67573,2720.6,2720.3,0.285]
[1739407782600,0.367573,2720.5,2720.3,0.285]
[1739407782802,3.67573,2720.6,2720.3,0.285]
[1739407783003,3.676,2720.4,2719.7,3.67677]
[1739407783235,3.676,2720.4,2720.3,0.285]
[1739407783418,3.67573,2720.6,2720.2,0.285]
[1739407783723,3.67579,2720.5,2720.2,0.285]
[1739407784092,3.67573,2720.6,2720.2,0.285]
[1739407784505,3.67596,2720.4,2720.2,0.285]
[1739407785017,3.67573,2720.6,2720.2,0.285]
[1739407785202,0.443513,2720.5,2720.2,0.285]
[1739407785705,4.119313,2720.5,2720.2,0.285]
[1739407785907,0.443513,2720.5,2720.2,0.285]
[1739407786541,3.67593,2720.4,2720.2,0.285]
[1739407786684,0.443513,2720.5,2720.2,0.285]
[1739407786885,3.67573,2720.6,2720.3,3.678]
[1739407787104,3.67545,2720.8,2720.3,7.35405]
[1739407787399,0.815,2721.0,2720.3,3.678]
[1739407787604,3.6751,2721.1,2720.3,3.678]
[1739407787605,3.6751,2721.1,2720.5,3.6757]
[1739407787838,3.6751,2721.1,2720.6,7.35363]
[1739407788042,4.54047101,2721.1,2720.6,3.678]
[1739407788340,3.67539,2720.8,2720.6,3.678]
[1739407788751,3.67565,2720.6,2720.5,0.285]
[1739407789107,3.67542,2720.8,2720.5,0.285]
[1739407789324,3.67561,2720.7,2720.5,0.285]
[1739407789527,3.67542,2720.8,2720.5,0.285]
[1739407789736,3.67497,2721.2,2720.6,3.67557]
[1739407789941,0.815,2721.3,2720.7,7.35344]
[1739407789942,3.67477,2721.3,2720.7,7.35344]
[1739407790141,3.67469,2721.4,2720.7,7.35344]
[1739407790341,8.04336294,2721.8,2720.8,3.71375169]
[1739407790342,0.0073561,2721.8,2720.8,3.71375169]
[1739407790547,0.0073561,2721.8,2720.8,0.03675169]
[1739407790770,3.67433,2721.6,2721.0,3.67501]
[1739407791046,3.67433,2721.6,2721.1,3.677]
[1739407791207,3.67417,2721.7,2721.1,7.35188]
[1739407791406,3.6813961,2721.8,2721.2,3.67477]
[1739407792146,0.0073561,2721.8,2721.2,3.67476]
[1739407792341,0.74289371,2721.8,2721.1,3.67488]
[1739407792508,3.6742,2721.7,2721.2,3.67482]
[1739407792815,3.6742,2721.7,2721.2,3.677]
[1739407793022,3.67431,2721.6,2721.2,3.677]
[1739407793219,3.67466,2721.4,2720.7,3.6754]
[1739407793423,3.67525,2720.9,2720.8,3.677]
[1739407793728,3.67525,2720.9,2720.8,0.286]
[1739407793928,1.13276661,2721.6,2720.8,3.963]
[1739407794152,7.35016,2721.1,2720.8,0.286]
[1739407794303,3.67508,2721.1,2720.9,3.677]
[1739407794509,3.6749,2721.2,2720.9,3.677]
[1739407795155,0.52878033,2721.4,2720.9,7.35224]
[1739407795334,3.67444,2721.5,2720.8,0.286]
[1739407795525,3.67477,2721.3,2720.8,0.286]
[1739407795814,3.67477,2721.3,2720.9,3.677]
[1739407796009,3.67487,2721.2,2720.9,3.677]
[1739407796324,3.67458,2721.4,2720.1,3.0]
[1739407796637,3.67543,2720.8,2720.2,0.285]
[1739407796945,0.7646,2721.6,2720.1,6.67625]
[1739407796946,3.67592,2720.5,2720.3,3.678]
[1739407797115,3.67606,2720.3,2720.2,3.678]
[1739407797316,3.67606,2720.3,2720.2,0.285]
[1739407797616,3.67606,2720.3,2720.2,3.963]
[1739407798151,3.67579,2720.5,2720.2,3.963]
[1739407798451,3.67574,2720.6,2720.3,3.678]
[1739407799247,3.67526,2720.9,2720.3,7.35401]
[1739407799411,3.67526,2720.9,2720.3,3.67601]
[1739407799615,4.042786,2720.9,2720.3,3.67601]
[1739407799953,3.67526,2720.9,2720.3,3.67599]
[1739407800155,3.67503,2721.1,2720.5,3.67571]
[1739407800462,0.80514868,2721.3,2720.9,3.67516]
[1739407800632,0.80514868,2721.3,2720.7,3.67548]
[1739407800813,0.7588,2721.4,2720.7,3.67548]
[1739407801016,0.7588,2721.4,2720.9,3.67524]
[1739407801216,0.7588,2721.4,2721.0,35.0]
[1739407801413,0.7588,2721.4,2721.1,0.285]
[1739407801617,4.43307,2721.7,2721.1,3.95986]
[1739407801858,0.7588,2721.7,2721.1,0.285]
[1739407802057,0.0073561,2721.8,2721.3,3.67459]
[1739407802259,0.0073561,2721.8,2721.4,3.67454]
[1739407802559,3.6814061,2721.8,2721.3,3.67459]
[1739407802736,3.6814361,2721.8,2721.1,0.285]
[1739407802938,3.67441,2721.6,2721.1,3.9599]
[1739407803255,3.67474,2721.3,2721.2,0.285]
[1739407803478,7.34901,2721.5,2721.2,0.285]
[1739407803826,3.67448,2721.5,2721.2,0.285]
[1739407804051,3.67471,2721.3,2721.2,0.285]
[1739407804362,3.67448,2721.5,2721.2,0.285]
[1739407804363,3.67467,2721.4,2721.2,0.285]
[1739407805152,3.67448,2721.5,2721.2,0.285]
[1739407805553,3.67459,2721.4,2721.2,0.285]
[1739407805960,3.67447,2721.5,2721.2,0.285]
[1739407806166,4.04239361,2721.7,2721.2,0.285]
[1739407806368,4.04239361,2721.7,2721.2,3.95982]
[1739407807229,3.6744,2721.6,2721.2,0.285]
[1739407807448,0.77240197,2721.6,2721.2,0.285]
[1739407807632,3.67428,2721.7,2721.2,0.285]
[1739407807833,3.67428,2721.7,2721.2,3.95984]
[1739407808054,3.67439,2721.6,2721.2,0.285]
[1739407808227,0.0073561,2721.8,2721.0,35.0]
[1739407808429,3.67496,2721.2,2721.0,0.284]
[1739407808627,4.45772,2721.3,2721.0,0.284]
[1739407808866,3.67464,2721.4,2721.0,0.284]
[1739407809175,3.67445,2721.5,2721.0,0.284]
[1739407809380,4.041888,2721.5,2721.0,0.284]
[1739407809532,3.6746,2721.4,2721.0,0.284]
[1739407809738,4.72118,2721.6,2721.1,3.67498]
[1739407809938,1.0468,2721.6,2721.2,3.67479]
[1739407810173,4.72112,2721.6,2721.1,7.34989]
[1739407810477,1.0468,2721.6,2721.0,0.284]
[1739407810648,7.34961,2721.3,2721.0,0.284]
[1739407810842,3.67479,2721.3,2720.8,3.677]
[1739407811044,3.67491,2721.2,2720.9,0.284]
[1739407811444,3.67444,2721.5,2720.9,0.284]
[1739407811646,1.0468,2721.6,2720.9,0.284]
[1739407811854,4.72117,2721.6,2720.9,3.95924]
[1739407812142,1.0468,2721.6,2721.1,3.67498]
[1739407812347,0.2496,2721.6,2721.1,3.67489]
[1739407812649,3.67445,2721.5,2721.0,3.67498]
[1739407813058,0.2496,2721.6,2721.3,3.67468]
[1739407814165,0.2496,2721.6,2721.1,3.67489]
[1739407814679,0.2496,2721.6,2721.5,3.67444]
[1739407814832,0.2496,2721.6,2721.5,7.38717691]
[1739407815383,0.2496,2721.6,2721.5,47.94467493]
[1739407815594,1e-05,2721.6,2721.5,56.85544]
[1739407815741,6.1e-06,2721.8,2721.7,7.23917]
[1739407815937,0.55,2722.3,2722.2,3.67349]
[1739407816141,0.55,2722.3,2722.2,15.56040684]
[1739407816536,0.55,2722.3,2722.2,50.56040684]
[1739407816763,3.67113,2724.0,2722.9,3.67247]
[1739407816965,3.67113,2724.0,2723.3,3.67199]
[1739407817280,0.7666,2724.1,2723.5,3.67172]
[1739407817437,3.67074,2724.3,2723.6,38.67151]
[1739407818084,4.43718,2724.4,2723.6,38.67151]
[1739407818306,4.43718,2724.4,2723.7,3.67147]
[1739407818458,4.43718,2724.4,2723.5,3.67174]
[1739407818655,4.43718,2724.4,2723.7,3.67146]
[1739407818981,3.6708,2724.2,2723.6,0.285]
[1739407819839,0.7666,2724.4,2723.6,0.285]
[1739407820066,3.6703,2724.6,2723.7,7.34436]
[1739407820373,3.67075,2724.3,2723.6,3.95659]
[1739407820572,3.67075,2724.3,2723.7,35.0]
[1739407822342,3.67027,2724.6,2723.9,3.67116]
[1739407822541,3.6704,2724.5,2723.9,3.67116]
[1739407822773,3.6704,2724.5,2724.0,3.673]
[1739407822974,3.67068,2724.3,2723.8,35.0]
[1739407823189,3.67094,2724.1,2723.9,0.285]
[1739407823394,3.67128,2723.9,2723.4,3.674]
[1739407823553,3.67128,2723.9,2723.8,0.285]
[1739407823761,3.67094,2724.1,2723.5,3.67173]
[1739407823939,3.67094,2724.1,2723.6,0.285]
[1739407824274,3.67113,2724.0,2723.6,0.285]
[1739407825157,1.2709048,2724.1,2723.7,3.67138]
[1739407825373,4.44774,2724.4,2723.7,3.67138]
[1739407825542,3.6708,2724.2,2723.6,3.95659]
[1739407825740,3.67094,2724.1,2723.6,0.285]
[1739407825949,3.67136,2723.8,2723.6,0.285]
[1739407826352,0.367094,2724.1,2723.6,0.285]
[1739407826353,3.67115,2724.0,2723.6,0.285]
[1739407826687,7.34232,2724.0,2723.6,0.285]
[1739407826863,3.67115,2724.0,2723.6,0.285]
[1739407827265,3.67123,2723.9,2723.6,0.285]
[1739407827666,3.67115,2724.0,2723.6,0.285]
[1739407827990,0.367094,2724.1,2723.6,0.285]
[1739407828163,0.367094,2724.1,2723.6,3.95657]
[1739407828376,4.44776,2724.4,2723.7,3.67138]
[1739407828703,3.6709,2724.2,2723.6,3.95657]
[1739407828908,7.3418,2724.2,2723.6,3.95657]
[1739407829491,0.7772,2724.4,2723.6,0.285]
[1739407829698,0.8178,2724.7,2723.7,3.673]
[1739407829922,3.67026,2724.6,2723.9,3.67114]
[1739407830499,0.8178,2724.7,2723.7,3.67142]
[1739407830706,3.67088,2724.2,2723.6,3.95655]
[1739407831026,3.67118,2724.0,2723.7,0.284]
[1739407831173,3.67134,2723.8,2723.7,0.284]
[1739407831603,0.7586,2724.1,2723.7,0.284]
[1739407832409,4.42957,2724.1,2723.7,0.284]
[1739407832576,0.07104528,2724.0,2723.7,0.284]
[1739407832905,0.07104528,2724.0,2723.9,3.6712]
[1739407833109,0.07104528,2724.0,2723.9,7.3442]
[1739407833408,7.34018,2724.8,2724.2,3.67071]
[1739407833604,3.67013,2724.7,2724.2,3.67071]
[1739407833803,3.6703,2724.6,2724.0,3.671]
[1739407834313,3.67006,2724.8,2724.0,3.671]
[1739407834475,7.34014,2724.8,2724.2,3.67079]
[1739407834671,0.7586,2724.9,2723.7,3.95544]
[1739407834876,0.7586,2724.9,2724.5,3.67038]
[1739407835093,0.7586,2724.9,2724.5,3.67032]
[1739407835926,0.7586,2724.9,2724.6,3.95321]
[1739407836235,0.07111122,2724.8,2724.6,0.283]
[1739407836809,3.74117122,2724.8,2724.3,3.67061]
[1739407837017,3.74117122,2724.8,2724.6,0.283]
[1739407837221,3.67047,2724.5,2724.3,0.283]
[1739407837421,3.67047,2724.5,2724.1,0.283]
[1739407837422,3.6708,2724.2,2724.1,0.283]
[1739407838225,0.7699,2724.6,2724.1,3.95393]
[1739407838423,4.44021,2724.6,2724.1,3.95393]
[1739407838612,3.67058,2724.4,2724.1,0.283]
[1739407838932,0.444048,2724.4,2723.9,0.282]
[1739407839096,3.6712,2724.0,2723.9,0.282]
[1739407839298,0.06821302,2724.0,2723.9,0.282]
[1739407839495,3.67107,2724.0,2723.9,0.282]
[1739407839935,3.73931212,2724.0,2723.9,0.282]
[1739407840497,0.06824212,2724.0,2723.9,0.282]
[1739407841233,0.06824212,2724.0,2723.9,3.9532]
[1739407841420,0.7699,2724.6,2724.2,3.67078]
[1739407841623,0.7699,2724.6,2724.1,3.67087]
[1739407841835,3.67019,2724.7,2724.2,7.34375]
[1739407842021,3.67041,2724.5,2724.2,3.673]
[1739407842200,3.67063,2724.4,2724.2,3.673]
[1739407842400,3.67041,2724.5,2724.3,35.0]
[1739407843340,0.06848677,2724.4,2724.3,35.0]
[1739407843547,3.67041,2724.5,2724.3,35.0]
[1739407843750,0.06848677,2724.4,2724.3,35.0]
[1739407843948,4.4305,2724.9,2724.3,35.0]
[1739407844249,0.06848677,2724.4,2724.3,38.67054]
[1739407844452,4.4305,2724.9,2724.4,3.6705]
[1739407844857,3.67,2724.8,2724.2,3.67068]
[1739407845040,5.240516,2724.9,2724.4,3.67046]
[1739407845241,5.240516,2724.9,2724.2,3.67074]
[1739407845242,4.4305,2724.9,2724.5,35.0]
[1739407845444,3.67002,2724.8,2724.5,35.0]
[1739407845745,3.67013,2724.7,2724.5,35.0]
[1739407845966,3.67026,2724.6,2724.5,35.0]
[1739407846264,3.67013,2724.7,2724.5,35.0]
[1739407846558,3.67013,2724.7,2724.1,3.67091]
[1739407846758,3.6705,2724.5,2724.0,7.34402]
[1739407846932,3.67066,2724.3,2724.1,35.281]
[1739407847136,3.6708,2724.2,2724.1,0.281]
[1739407847336,3.6708,2724.2,2723.7,3.674]
[1739407847538,4.47656,2724.3,2724.0,0.281]
[1739407847752,3.67093,2724.1,2724.0,0.281]
[1739407848123,4.924216,2724.3,2724.0,0.281]
[1739407848543,3.67055,2724.4,2724.0,0.281]
[1739407848719,3.67053,2724.4,2724.0,0.281]
[1739407849236,0.7534,2724.6,2723.8,35.0]
[1739407849437,0.7534,2724.0,2723.8,35.0]
[1739407849651,0.7534,2724.3,2723.8,35.0]
[1739407849961,3.67062,2724.4,2723.9,3.6712]
[1739407850370,3.67047,2724.5,2723.9,7.34413]
[1739407850538,3.67047,2724.5,2723.9,7.34226]
[1739407850741,3.67047,2724.5,2723.9,3.67113]
[1739407850971,3.67047,2724.5,2723.9,7.34225]
[1739407851180,3.67053,2724.4,2723.9,3.67112]
[1739407851373,7.34114,2724.4,2724.0,3.673]
[1739407851577,3.67053,2724.4,2724.0,3.673]
[1739407852072,4.4237,2724.6,2724.0,7.344]
[1739407852245,0.7822,2724.9,2724.2,3.6708]
[1739407852449,0.7822,2724.9,2724.4,3.67047]
[1739407852683,4.45173,2725.2,2724.5,3.95132]
[1739407852887,3.6697,2725.1,2724.6,35.0]
[1739407853361,3.66986,2724.9,2724.6,35.0]
[1739407854985,3.67012,2724.7,2724.6,35.0]
[1739407855202,3.66986,2724.9,2724.6,35.0]
[1739407855956,3.66986,2724.9,2724.5,0.281]
[1739407856484,3.66986,2724.9,2724.5,35.281]
[1739407857578,4.45167,2725.2,2724.5,38.9513]
[1739407857779,3.66963,2725.1,2724.5,42.62161]
[1739407858003,3.66963,2725.1,2724.5,38.9513]
[1739407858289,3.66995,2724.9,2724.5,35.281]
[1739407858532,3.67,2724.8,2724.5,35.281]
[1739407858822,3.66979,2725.0,2724.5,35.281]
[1739407859325,3.66979,2725.0,2724.5,38.95129]
[1739407859521,4.45172,2725.2,2724.5,35.281]
[1739407859815,3.6696,2725.1,2724.6,3.67022]
[1739407860033,3.6696,2725.1,2724.6,7.34222]
[1739407860318,3.66972,2725.0,2724.6,3.672]
[1739407860545,3.66967,2725.1,2724.5,35.281]
[1739407861054,3.66979,2725.0,2724.5,38.95139]
[1739407861644,3.66934,2725.3,2724.5,38.95139]
[1739407861795,3.66945,2725.2,2724.6,3.67017]
[1739407862308,0.769,2725.4,2724.5,35.281]
[1739407862513,3.66907,2725.5,2725.0,3.66965]
[1739407862723,3.66907,2725.5,2724.8,3.66989]
[1739407862927,3.66907,2725.5,2724.5,35.281]
[1739407863128,3.66907,2725.5,2725.0,3.66962]
[1739407863530,7.33823,2725.5,2725.0,3.66962]
[1739407863908,3.66907,2725.5,2725.0,3.66962]
[1739407864141,3.66927,2725.4,2724.8,3.66992]
[1739407864348,0.8312,2725.7,2724.5,35.281]
[1739407864558,3.66969,2725.1,2724.6,3.67023]
[1739407865015,3.66927,2725.4,2724.8,3.66989]
[1739407865220,7.33829,2725.5,2724.7,3.67005]
[1739407865417,7.33829,2725.5,2724.9,3.66978]
[1739407865618,0.8162,2725.7,2724.7,3.67004]
[1739407865944,0.8162,2725.7,2724.5,35.281]
[1739407866195,3.66946,2725.2,2724.6,3.67026]
[1739407866491,3.67013,2724.7,2724.6,0.279]
[1739407867245,0.8162,2724.6,2723.8,3.0]
[1739407867445,0.8162,2724.6,2724.3,0.279]
[1739407867965,0.8162,2724.6,2724.4,35.0]
[1739407868577,4.48655,2724.6,2724.4,35.0]
[1739407868894,0.8162,2724.6,2723.3,4.36191684]
[1739407869102,3.67072,2724.3,2723.7,3.67137]
[1739407869304,0.8162,2724.6,2723.1,9.68004972]
[1739407869448,3.67126,2723.9,2723.2,0.279]
[1739407869648,3.67126,2723.9,2723.3,3.674]
[1739407870212,0.7577,2724.0,2723.4,3.67179]
[1739407870353,0.7577,2724.3,2723.8,3.67126]
[1739407870554,4.42837,2724.3,2723.6,7.34308]
[1739407870780,0.7577,2724.3,2723.4,3.67185]
[1739407871022,3.67102,2724.1,2723.4,3.67185]
[1739407871150,0.7577,2724.3,2723.5,3.674]
[1739407871355,3.67124,2723.9,2723.6,0.279]
[1739407871551,3.67097,2724.1,2723.6,0.279]
[1739407871805,3.67125,2723.9,2723.6,0.279]
[1739407871966,3.67182,2723.5,2722.9,12.61252]
[1739407872269,0.7777,2723.8,2723.0,3.953]
[1739407872466,3.6717,2723.6,2722.7,3.6727]
[1739407872697,0.0075,2723.7,2722.5,3.67308]
[1739407872906,3.67225,2723.2,2722.8,0.28]
[1739407873311,3.67192,2723.4,2722.8,0.28]
[1739407873508,3.67192,2723.4,2722.8,3.95256]
[1739407873711,3.67192,2723.4,2722.7,3.67269]
[1739407874011,3.67242,2723.0,2722.9,0.28]
[1739407874167,4.49562,2723.0,2722.9,0.28]
[1739407874674,0.8232,2723.0,2722.9,0.28]
[1739407875582,4.49562,2723.0,2722.9,0.28]
[1739407876216,0.8232,2723.0,2722.9,0.28]
[1739407876627,4.46925,2723.8,2723.0,3.67231]
[1739407876768,8.65551567,2723.8,2723.2,3.67214]
[1739407876963,3.67162,2723.6,2722.9,0.28]
[1739407877168,3.6721,2723.3,2722.9,0.28]
[1739407877868,0.7978,2723.8,2722.9,0.28]
[1739407877869,3.67158,2723.7,2723.0,3.67242]
[1739407878299,3.67158,2723.7,2723.2,3.67213]
[1739407878567,0.7978,2723.8,2723.3,3.672]
[1739407879064,4.46921,2723.8,2723.2,3.67211]
[1739407879270,3.67163,2723.6,2723.1,3.674]
[1739407879717,0.7978,2723.8,2723.2,3.67202]
[1739407879917,3.67122,2723.9,2723.4,3.67187]
[1739407880215,0.8003,2724.1,2723.7,3.67147]
[1739407880379,3.67078,2724.3,2723.7,3.67138]
[1739407880578,3.67038,2724.6,2723.8,0.28]
[1739407880783,3.67049,2724.5,2723.9,3.67113]
[1739407880969,0.8085,2724.7,2723.8,0.28]
[1739407881185,0.8085,2724.7,2724.2,3.67072]
[1739407881431,3.67062,2724.4,2723.8,3.95122]
[1739407881717,3.67062,2724.4,2723.9,3.673]
[1739407882218,0.447855,2724.6,2724.0,0.28]
[1739407882519,3.67039,2724.5,2724.0,0.28]
[1739407882900,3.67028,2724.6,2724.0,3.95106]
[1739407883221,0.8085,2724.7,2724.3,3.67064]
[1739407883390,0.8085,2724.7,2724.2,3.67078]
[1739407883720,4.43279,2725.1,2724.5,3.67034]
[1739407884217,3.66974,2725.0,2724.5,3.67034]
[1739407884417,3.67003,2724.8,2724.3,3.67063]
[1739407884622,3.67003,2724.8,2724.4,3.673]
[1739407885323,3.67035,2724.6,2724.4,0.28]
[1739407885528,4.037425,2724.5,2724.4,0.28]
[1739407885897,0.367035,2724.5,2724.4,0.28]
[1739407886097,3.67003,2724.8,2724.4,0.28]
[1739407886399,3.66975,2725.0,2724.4,0.28]
[1739407886632,7.3396,2725.0,2724.4,0.28]
[1739407886829,3.66975,2725.0,2724.4,3.95052]
[1739407887036,3.66989,2724.9,2724.4,0.28]
[1739407887343,0.810236,2725.0,2724.4,0.28]
[1739407887548,3.67039,2724.5,2724.4,0.28]
[1739407888258,0.752,2724.5,2723.5,3.67164]
[1739407888580,3.67083,2724.2,2723.6,0.28]
[1739407889038,3.67083,2724.2,2723.7,3.67145]
[1739407889244,3.67096,2724.1,2723.6,0.28]
[1739407889536,3.67117,2724.0,2723.7,3.674]
[1739407889713,3.67117,2724.0,2723.7,0.28]
[1739407890117,3.67095,2724.1,2723.7,0.28]
[1739407892142,3.67121,2723.9,2723.7,0.28]
[1739407892553,0.7543,2723.9,2722.9,13.33338349]
[1739407892762,3.67166,2723.6,2723.1,3.67219]
[1739407893054,3.67166,2723.6,2723.2,3.674]
[1739407894353,3.67201,2723.3,2723.2,3.674]
[1739407894556,0.7543,2723.3,2722.9,0.279]
[1739407894764,3.67242,2723.0,2722.9,0.279]
[1739407896457,4.42636,2723.3,2722.9,0.279]
[1739407896659,0.7543,2723.3,2722.9,0.279]
[1739407897155,3.67216,2723.2,2722.9,0.279]
[1739407897363,3.6723,2723.1,2722.9,0.279]
[1739407897548,3.67242,2723.0,2722.9,0.279]
[1739407898459,3.67229,2723.1,2722.9,0.279]
[1739407898633,0.7543,2723.3,2722.9,0.279]
[1739407898634,3.67225,2723.2,2722.9,0.279]
[1739407898838,3.67242,2723.0,2722.9,0.279]
[1739407899356,3.67229,2723.1,2722.9,0.279]
[1739407900067,3.67242,2723.0,2722.9,0.279]
[1739407901461,3.67242,2723.0,2722.5,3.675]
[1739407901760,3.67242,2723.0,2722.6,0.278]
[1739407902262,3.67256,2722.9,2722.6,0.278]
[1739407902660,3.67233,2723.1,2722.6,3.95089]
[1739407902839,4.4264,2723.3,2722.7,3.67271]
[1739407903041,3.67215,2723.2,2722.7,3.67271]
[1739407903870,8.0985,2723.3,2722.7,3.67271]
[1739407904161,4.42639,2723.3,2722.7,3.67271]
[1739407904662,3.67243,2723.0,2722.6,0.278]
[1739407904958,0.05883138,2723.2,2723.0,3.67228]
[1739407905260,3.67181,2723.5,2723.0,3.67228]
[1739407905441,3.67189,2723.4,2722.8,3.67255]
[1739407905641,7.34366,2723.5,2722.8,3.67255]
[1739407905952,7.34369,2723.5,2722.8,3.67255]
[1739407906151,3.67174,2723.5,2722.8,3.67264]
[1739407906329,0.8263,2723.6,2722.8,3.67264]
[1739407906531,3.67236,2723.1,2722.6,0.278]
[1739407906823,3.67236,2723.1,2722.6,3.95087]
[1739407907047,7.34477,2723.1,2722.6,3.95087]
[1739407907254,3.6721,2723.3,2722.6,3.95087]
[1739407907462,3.67183,2723.5,2723.0,3.67237]
[1739407907666,7.34368,2723.5,2723.0,3.67237]
[1739407907839,3.67183,2723.5,2723.0,3.67237]
[1739407908045,3.67188,2723.4,2722.8,3.67256]
[1739407908363,3.67188,2723.4,2722.6,3.95087]
[1739407908364,3.67236,2723.1,2722.6,0.278]
[1739407908525,3.67251,2723.0,2722.6,0.278]
[1739407908732,0.05622852,2723.0,2722.6,0.278]
[1739407908933,3.67257,2722.9,2722.7,0.278]
[1739407909246,0.05601959,2722.8,2722.7,0.278]